bitfinex/quotes_SOLUSD_20250904
["timestamp","ask_amount","ask_price","bid_price","bid_amount"]
[1756953634317,1e-08,208.8,208.79,88.2214292]
[1756953634521,1e-08,208.8,208.79,88.79616936]
[1756953636312,1e-08,208.8,208.79,31.64856471]
[1756953636515,1e-08,208.8,208.79,73.95583519]
[1756953638637,1e-08,208.8,208.79,88.79616936]
[1756953638817,0.06,208.85,208.84,0.28432314]
[1756953638996,0.06,208.85,208.84,56.74192779]
[1756953639332,0.06,208.85,208.84,57.41192779]
[1756953639800,1e-08,208.91,208.85,18.02192779]
[1756953640118,1e-08,208.86,208.85,19.26650284]
[1756953640637,1e-08,208.86,208.85,24.05462828]
[1756953643010,1e-08,208.86,208.85,62.77462828]
[1756953644011,1e-08,208.88,208.87,39.59559401]
[1756953644229,1e-08,208.88,208.87,87.45845846]
[1756953644409,1e-08,208.88,208.87,79.89443718]
[1756953644728,1e-08,208.88,208.87,92.96612542]
[1756953644929,1e-08,208.91,208.88,0.28432314]
[1756953645231,1e-08,208.91,208.9,13.87991715]
[1756953645609,1e-08,208.91,208.9,17.24044313]
[1756953646607,1e-08,208.91,208.9,22.02742254]
[1756953647734,1e-08,208.91,208.9,60.72742254]
[1756953647934,1e-08,208.91,208.9,60.00742254]
[1756953648318,1e-08,208.91,208.9,60.72742254]
[1756953649434,0.06,208.94,208.93,39.59559401]
[1756953649627,0.06,208.94,208.93,42.52044313]
[1756953649822,0.06,208.94,208.93,81.22044313]
[1756953650019,0.06,208.94,208.93,81.94044313]
[1756953650429,0.67,208.99,208.98,2.92484912]
[1756953650740,0.2,209.01,209.0,39.59559401]
[1756953650917,0.2,209.01,209.0,91.76254705]
[1756953651116,1e-08,209.01,209.0,53.08254705]
[1756953651334,1e-08,209.01,209.0,81.20044313]
[1756953652220,1e-08,209.01,209.0,91.76254705]
[1756953653042,1e-08,209.01,209.0,96.54723604]
[1756953654437,1e-08,209.01,209.0,47.30513212]
[1756953654438,0.67000001,209.01,209.0,47.30513212]
[1756953654638,0.67000001,209.01,208.94,12.68509328]
[1756953654839,0.67000001,209.01,208.9,102.53489707]
[1756953654840,1e-08,209.01,209.0,2.64052598]
[1756953655013,1e-08,209.01,209.0,41.60484912]
[1756953655215,0.67000001,209.01,209.0,41.60484912]
[1756953655924,0.67000001,209.01,209.0,46.38953811]
[1756953656430,1e-08,209.01,209.0,46.38953811]
[1756953656840,1e-08,209.01,209.0,46.36953811]
[1756953658014,1e-08,209.01,209.0,7.70953811]
[1756953658213,1e-08,209.01,209.0,46.36953811]
[1756953658834,1e-08,209.01,209.0,7.70953811]
[1756953659025,0.67000001,209.01,209.0,7.70953811]
[1756953659215,0.67000001,209.01,209.0,46.36953811]
[1756953660932,0.67000001,209.01,209.0,7.70953811]
[1756953661235,0.67000001,209.01,209.0,46.36953811]
[1756953661444,0.67000001,209.01,209.0,43.72901213]
[1756953662914,1e-08,209.01,209.0,46.36953811]
[1756953666644,1e-08,209.01,209.0,124.96953811]
[1756953667640,1e-08,209.01,209.0,139.28513212]
[1756953668430,1e-08,209.01,209.0,138.56513212]
[1756953670153,0.67000001,209.01,209.0,135.88460614]
[1756953670658,1e-08,209.01,209.0,164.52513212]
[1756953670943,0.67000001,209.01,209.0,43.40468899]
[1756953671358,0.67000001,209.01,209.0,4.78468899]
[1756953671651,0.67000001,209.01,209.0,43.40468899]
[1756953671867,0.67000001,209.01,209.0,43.68901213]
[1756953676148,1e-08,209.01,209.0,43.68901213]
[1756953676327,0.69000001,209.01,209.0,43.68901213]
[1756953678332,1e-08,209.01,209.0,43.68901213]
[1756953680239,0.69000001,209.01,209.0,43.66901213]
[1756953681146,0.69000001,209.01,209.0,43.69901213]
[1756953682539,0.69000001,209.01,209.0,0.03]
[1756953682745,3.33052599,209.01,209.0,0.03]
[1756953682948,8.11498606,209.01,208.97,0.03]
[1756953683156,2.64052598,208.98,208.97,0.03]
[1756953683645,3.33052598,208.98,208.97,0.03]
[1756953686641,8.11567288,208.98,208.97,0.03]
[1756953696359,5.4751469,208.98,208.97,0.03]
[1756953696567,29.33052598,208.98,208.97,0.03]
[1756953696765,3.33052598,208.98,208.97,0.03]
[1756953697357,8.11567288,208.98,208.97,0.03]
[1756953701549,3.33052598,208.98,208.97,0.03]
[1756953702076,0.68000001,209.01,208.97,0.03]
[1756953702381,3.32052598,208.98,208.97,0.03]
[1756953703591,2.64052598,208.98,208.97,0.03]
[1756953705256,2.64052598,208.99,208.97,0.03]
[1756953706366,0.68,209.0,208.97,0.03]
[1756953706563,2.64052598,208.98,208.97,0.03]
[1756953707576,4.12692338,208.98,208.97,0.03]
[1756953709357,1e-08,209.01,208.97,0.7]
[1756953709560,1e-08,209.01,208.98,4.7851469]
[1756953709876,1e-08,209.01,208.98,5.4551469]
[1756953710248,4.12692338,209.0,208.97,4.81534757]
[1756953710446,4.12692338,209.0,208.97,0.7]
[1756953710674,4.12692338,208.98,208.95,4.15692338]
[1756953710875,4.12692338,208.96,208.95,0.03]
[1756953711160,30.12692338,208.96,208.95,0.03]
[1756953711367,30.80692338,208.96,208.95,0.03]
[1756953711568,35.59252828,208.96,208.95,0.03]
[1756953712676,26.68,208.96,208.95,0.03]
[1756953712888,35.59252828,208.96,208.95,0.03]
[1756953715766,30.80692338,208.96,208.95,0.03]
[1756953716067,26.68,208.96,208.95,0.03]
[1756953716252,35.59252828,208.96,208.95,0.03]
[1756953717277,30.80692338,208.96,208.95,0.03]
[1756953717665,26.68,208.96,208.95,0.03]
[1756953717871,30.80692338,208.96,208.95,0.03]
[1756953718487,35.59252828,208.96,208.95,0.03]
[1756953720067,30.80692338,208.96,208.95,0.03]
[1756953720980,35.59252828,208.96,208.95,0.03]
[1756953721278,74.11252828,208.96,208.95,0.03]
[1756953726066,35.59252828,208.96,208.95,0.03]
[1756953726277,30.80692338,208.96,208.95,0.03]
[1756953726588,69.32692338,208.96,208.95,0.03]
[1756953727090,74.11252828,208.96,208.95,0.03]
[1756953727590,68.64692338,208.96,208.95,0.03]
[1756953727773,74.11252828,208.96,208.95,0.03]
[1756953728183,69.9856049,208.96,208.95,0.03]
[1756953728490,74.11252828,208.96,208.95,0.03]
[1756953734383,13.59559401,208.95,208.94,0.03]
[1756953734697,26.0,208.93,208.92,0.03]
[1756953734900,68.64692338,208.93,208.92,0.03]
[1756953735084,69.33692338,208.93,208.92,0.03]
[1756953735285,67.12878732,208.93,208.92,0.03]
[1756953735482,71.2557107,208.93,208.92,0.03]
[1756953735795,69.33692338,208.93,208.92,0.03]
[1756953737100,74.12321543,208.93,208.92,0.03]
[1756953738706,73.43321543,208.93,208.92,0.03]
[1756953739007,73.41321543,208.93,208.92,0.03]
[1756953739505,74.10321543,208.93,208.92,0.03]
[1756953746578,69.28629205,208.93,208.92,0.03]
[1756953746784,73.41321543,208.93,208.92,0.03]
[1756953747492,74.10321543,208.93,208.92,0.03]
[1756953750488,74.10321543,208.93,208.9,0.03]
[1756953750489,13.59559401,208.92,208.9,0.03]
[1756953750688,60.32944077,208.91,208.9,0.03]
[1756953751004,65.80619104,208.91,208.9,0.03]
[1756953751299,67.72534661,208.91,208.9,0.03]
[1756953753696,63.59842323,208.91,208.9,0.03]
[1756953753902,25.11842323,208.91,208.9,0.03]
[1756953754110,48.08367365,208.91,208.9,0.03]
[1756953755305,48.08367365,208.91,208.89,0.03]
[1756953755306,66.09051418,208.91,208.89,0.03]
[1756953755506,39.59559401,208.88,208.87,0.03]
[1756953755708,56.20251739,208.88,208.87,0.03]
[1756953755889,56.89251739,208.88,208.87,0.03]
[1756953756089,58.81185714,208.88,208.87,0.03]
[1756953757699,63.5992949,208.88,208.87,0.03]
[1756953760419,26.0,208.82,208.78,0.67]
[1756953760592,4.12692338,208.79,208.78,0.67]
[1756953760794,42.60692338,208.79,208.78,0.67]
[1756953763026,47.39642479,208.79,208.78,0.67]
[1756953763395,42.60692338,208.79,208.78,0.67]
[1756953764414,47.39642479,208.79,208.78,0.67]
[1756953764709,4.12692338,208.79,208.76,0.78]
[1756953764910,4.12692338,208.77,208.76,0.1]
[1756953765412,4.12692338,208.77,208.76,0.78]
[1756953765718,4.12692338,208.78,208.76,0.78]
[1756953766017,4.12692338,208.77,208.76,0.78]
[1756953766205,4.12692338,208.77,208.76,0.1]
[1756953766805,4.12692338,208.77,208.76,0.78]
[1756953768115,4.12692338,208.81,208.76,0.78]
[1756953768413,26.0,208.84,208.76,9.69707375]
[1756953768414,38.46,208.83,208.76,9.69707375]
[1756953768723,4.12692338,208.79,208.77,0.68]
[1756953769091,43.89862553,208.83,208.76,0.1]
[1756953769409,4.12692338,208.79,208.77,0.68]
[1756953769589,2.64606303,208.79,208.77,0.68]
[1756953770029,2.64606303,208.79,208.78,0.68]
[1756953770521,43.24925314,208.81,208.76,0.78]
[1756953770714,2.64606303,208.8,208.77,0.68]
[1756953770912,2.64606303,208.78,208.76,0.1]
[1756953771113,5.43883653,208.82,208.76,0.1]
[1756953771422,2.64606303,208.82,208.77,0.68]
[1756953771593,38.46,208.82,208.77,0.68]
[1756953771922,26.0,208.83,208.77,0.68]
[1756953772114,41.10606303,208.82,208.77,0.68]
[1756953772823,26.0,208.82,208.77,0.68]
[1756953773018,67.10606303,208.82,208.77,0.68]
[1756953773410,2.64606303,208.81,208.78,0.68]
[1756953775816,26.0,208.78,208.76,0.1]
[1756953775997,2.64606303,208.77,208.76,0.1]
[1756953776707,3.29606303,208.77,208.76,0.1]
[1756953777116,2.64606303,208.77,208.76,0.1]
[1756953779024,38.44,208.79,208.76,0.78]
[1756953779233,41.08606303,208.8,208.77,0.68]
[1756953779829,2.64606303,208.8,208.77,5.46996024]
[1756953780005,2.64606303,208.8,208.78,0.68]
[1756953780205,41.08606303,208.81,208.78,0.68]
[1756953780600,38.44,208.81,208.78,0.68]
[1756953781117,38.44,208.81,208.79,0.68]
[1756953781299,38.44,208.81,208.77,0.68]
[1756953783324,39.09,208.81,208.77,0.68]
[1756953783513,2.64606303,208.78,208.76,0.1]
[1756953783831,2.64606303,208.77,208.76,0.1]
[1756953784123,3.29606303,208.77,208.76,0.1]
[1756953784327,41.08606303,208.78,208.76,0.1]
[1756953784914,39.09,208.78,208.76,0.1]
[1756953785624,0.65,208.78,208.76,0.1]
[1756953785830,7.43515726,208.81,208.76,0.1]
[1756953786021,38.42,208.81,208.77,3.32606303]
[1756953786209,2.64606303,208.83,208.78,0.68]
[1756953786408,39.07,208.83,208.78,3.32606303]
[1756953787523,39.07,208.83,208.78,0.68]
[1756953787854,0.71,208.85,208.79,0.68]
[1756953788014,0.71,208.85,208.79,3.32606303]
[1756953788213,38.42,208.84,208.8,2.64606303]
[1756953788414,39.13,208.85,208.8,2.64606303]
[1756953788626,39.13,208.85,208.8,3.32606303]
[1756953789628,38.48,208.85,208.8,3.32606303]
[1756953789826,0.65,208.84,208.8,3.32606303]
[1756953790027,38.48,208.85,208.8,8.11526798]
[1756953790229,38.48,208.85,208.81,0.68]
[1756953790732,39.13,208.85,208.8,7.43526798]
[1756953790949,39.13,208.85,208.8,8.11526798]
[1756953791240,39.13,208.85,208.81,0.68]
[1756953791415,38.48,208.85,208.81,0.68]
[1756953791621,0.06,208.85,208.82,3.32606303]
[1756953791922,0.06,208.85,208.84,7.43441775]
[1756953792326,0.06,208.85,208.82,0.7]
[1756953792536,0.06,208.85,208.81,29.34606303]
[1756953792735,0.06,208.85,208.82,0.7]
[1756953793040,0.06,208.85,208.82,3.34606303]
[1756953793222,0.06,208.85,208.83,2.64606303]
[1756953794829,0.74,208.85,208.81,28.64606303]
[1756953795037,0.06,208.85,208.83,0.7]
[1756953795426,0.06,208.85,208.83,3.34606303]
[1756953798539,0.06,208.85,208.82,4.78870245]
[1756953799040,0.06,208.85,208.82,0.7]
[1756953802346,0.06,208.85,208.81,7.4350593]
[1756953802549,0.06,208.85,208.82,0.7]
[1756953802728,0.06,208.85,208.82,8.1348005]
[1756953802927,0.06,208.85,208.83,0.7]
[1756953803130,0.06,208.85,208.83,3.34606303]
[1756953803850,0.06,208.85,208.83,0.7]
[1756953805933,0.06,208.85,208.84,0.7]
[1756953806141,0.06,208.85,208.84,3.34606303]
[1756953806338,0.06,208.85,208.82,2.67606303]
[1756953806540,0.74,208.85,208.82,0.03]
[1756953806742,0.06,208.85,208.82,0.03]
[1756953807059,2.64606303,208.83,208.82,0.03]
[1756953807353,3.32606303,208.83,208.82,0.03]
[1756953807859,8.11464704,208.83,208.82,0.03]
[1756953809650,0.06,208.85,208.82,0.03]
[1756953810042,0.74,208.85,208.82,0.03]
[1756953810347,2.64606303,208.83,208.82,0.03]
[1756953810546,0.68,208.84,208.82,0.03]
[1756953810741,3.32606303,208.83,208.82,0.03]
[1756953811329,8.11464704,208.83,208.82,0.03]
[1756953814258,11.28599674,208.83,208.82,0.03]
[1756953815342,8.11464704,208.83,208.82,0.03]
[1756953817759,46.47464704,208.83,208.82,0.03]
[1756953817963,4.78858401,208.83,208.82,0.03]
[1756953818255,46.47464704,208.83,208.82,0.03]
[1756953818445,75.64563664,208.83,208.82,0.03]
[1756953818630,63.52555379,208.83,208.82,0.03]
[1756953819444,51.56571344,208.83,208.82,0.03]
[1756953819648,49.64563664,208.83,208.82,0.03]
[1756953819854,75.64563664,208.83,208.82,0.03]
[1756953820958,72.47464704,208.83,208.82,0.03]
[1756953822273,69.82858401,208.83,208.82,0.03]
[1756953822445,72.45464704,208.83,208.82,0.03]
[1756953823643,34.11464704,208.83,208.82,0.03]
[1756953823847,64.34,208.83,208.82,0.03]
[1756953824558,69.12858401,208.83,208.82,0.03]
[1756953824867,72.46464704,208.83,208.82,0.03]
[1756953825054,75.63470172,208.83,208.82,0.03]
[1756953825259,77.55459421,208.83,208.82,0.03]
[1756953828065,74.90853118,208.83,208.82,0.03]
[1756953828254,72.96863869,208.83,208.82,0.03]
[1756953828563,69.10858401,208.83,208.82,0.03]
[1756953828770,71.75464704,208.83,208.82,0.03]
[1756953829347,72.44464704,208.83,208.82,0.03]
[1756953829550,73.93261675,208.83,208.82,0.03]
[1756953830844,69.10858401,208.83,208.82,0.03]
[1756953831060,73.24261675,208.83,208.82,0.03]
[1756953831259,73.93261675,208.83,208.82,0.03]
[1756953832670,69.79858401,208.83,208.82,0.03]
[1756953832964,73.93261675,208.83,208.82,0.03]
[1756953833158,77.10224299,208.83,208.82,0.03]
[1756953833566,79.02213547,208.83,208.82,0.03]
[1756953833962,53.02213547,208.83,208.82,0.03]
[1756953836094,48.88810273,208.83,208.82,0.03]
[1756953836380,53.02213547,208.83,208.82,0.03]
[1756953840163,28.29772948,208.83,208.82,0.03]
[1756953840365,66.61772948,208.83,208.82,0.03]
[1756953840670,28.29772948,208.83,208.82,0.03]
[1756953840861,66.61772948,208.83,208.82,0.03]
[1756953841764,47.22261675,208.83,208.82,0.03]
[1756953842681,50.39211478,208.83,208.82,0.03]
[1756953843471,12.09211478,208.83,208.82,0.03]
[1756953843673,73.22261675,208.83,208.82,0.75]
[1756953843873,73.22261675,208.83,208.82,0.03]
[1756953845100,72.25916637,208.83,208.82,0.03]
[1756953845283,76.39319911,208.83,208.82,0.03]
[1756953846784,76.3942744,208.83,208.82,0.03]
[1756953847872,77.0842744,208.83,208.82,0.03]
[1756953848187,51.0842744,208.83,208.82,0.03]
[1756953849091,53.00416688,208.83,208.82,0.03]
[1756953850162,48.87013414,208.83,208.82,0.03]
[1756953850376,12.0942744,208.83,208.82,0.03]
[1756953850573,50.3942744,208.83,208.82,0.03]
[1756953851086,51.0842744,208.83,208.82,0.03]
[1756953852783,64.67986841,208.83,208.82,0.03]
[1756953852991,64.96419155,208.83,208.82,0.03]
[1756953853391,196.46419155,208.83,208.82,0.03]
[1756953854671,39.59559401,208.8,208.79,0.03]
[1756953854878,89.15169243,208.8,208.79,0.03]
[1756953855078,89.86169243,208.8,208.79,0.03]
[1756953855393,92.22999363,208.8,208.79,0.03]
[1756953855592,92.0648045,208.8,208.79,0.03]
[1756953855792,95.59270381,208.8,208.79,0.03]
[1756953856889,104.51600858,208.8,208.79,0.03]
[1756953857089,39.59559401,208.77,208.76,0.1]
[1756953857408,88.99350685,208.77,208.76,0.1]
[1756953857609,89.70350685,208.77,208.76,0.1]
[1756953857799,91.62413682,208.77,208.76,0.1]
[1756953858879,96.41409706,208.77,208.76,1e-08]
[1756953859504,96.41409706,208.77,208.73,0.03]
[1756953859505,17.72962675,208.75,208.73,0.03]
[1756953859707,62.70918371,208.75,208.73,0.03]
[1756953860011,63.41918371,208.75,208.73,0.03]
[1756953860209,65.3399059,208.75,208.73,0.03]
[1756953860783,70.13032506,208.75,208.73,0.03]
[1756953861598,75.67608742,208.75,208.73,0.03]
[1756953861796,11.5435897,208.74,208.73,0.03]
[1756953862193,8.01569039,208.74,208.73,0.03]
[1756953862389,11.53276918,208.74,208.73,0.03]
[1756953862590,15.30178956,208.74,208.73,0.03]
[1756953862794,20.09243821,208.74,208.73,0.03]
[1756953863301,16.57534068,208.74,208.73,0.03]
[1756953864412,30.17093469,208.74,208.73,0.03]
[1756953864702,30.17093469,208.74,208.71,0.03]
[1756953864703,30.13403274,208.72,208.71,0.03]
[1756953864893,76.37679809,208.72,208.71,0.03]
[1756953865094,73.20514044,208.72,208.71,0.03]
[1756953865886,34.92514044,208.72,208.71,0.03]
[1756953866087,34.92514044,208.72,208.71,0.73]
[1756953866088,69.0711077,208.72,208.71,0.73]
[1756953866286,73.20514044,208.72,208.71,0.73]
[1756953867005,73.20514044,208.72,208.71,0.03]
[1756953868113,73.91514044,208.72,208.71,0.03]
[1756953868308,90.67076987,208.72,208.71,0.03]
[1756953868613,90.95509301,208.72,208.71,0.03]
[1756953868801,86.82106027,208.72,208.71,0.03]
[1756953869001,90.95509301,208.72,208.71,0.03]
[1756953869396,87.79505759,208.72,208.71,0.03]
[1756953869618,90.9545384,208.72,208.71,0.03]
[1756953870196,89.71614877,208.72,208.71,0.03]
[1756953871216,89.00614877,208.72,208.71,0.03]
[1756953871514,88.72182563,208.72,208.71,0.03]
[1756953872022,50.44182563,208.72,208.71,0.03]
[1756953872192,88.72182563,208.72,208.71,0.03]
[1756953872795,13.59559401,208.71,208.69,0.03]
[1756953873111,42.41403274,208.7,208.69,0.03]
[1756953873492,44.33512392,208.7,208.69,0.03]
[1756953874799,49.12669076,208.7,208.69,0.03]
[1756953875002,49.83669076,208.7,208.69,0.03]
[1756953877423,49.12669076,208.7,208.69,0.03]
[1756953879024,49.83669076,208.7,208.69,0.03]
[1756953879413,49.12669076,208.7,208.69,0.03]
[1756953880120,10.84669076,208.7,208.69,0.73]
[1756953880323,68.41403274,208.7,208.69,0.73]
[1756953880618,73.20559958,208.7,208.69,0.73]
[1756953883106,64.28,208.7,208.69,0.73]
[1756953883330,68.41403274,208.7,208.69,0.73]
[1756953883602,38.28,208.71,208.69,0.73]
[1756953883806,42.41403274,208.71,208.69,0.73]
[1756953884025,4.13403274,208.7,208.69,0.73]
[1756953884730,42.41403274,208.71,208.69,0.73]
[1756953884909,38.28,208.71,208.69,0.73]
[1756953885329,4.13403274,208.72,208.69,0.73]
[1756953885531,42.41403274,208.72,208.69,0.73]
[1756953885732,38.28,208.73,208.69,5.5217395]
[1756953885907,42.41403274,208.73,208.7,0.67]
[1756953886340,38.28,208.73,208.7,5.461487]
[1756953886511,38.28,208.73,208.71,0.67]
[1756953886832,4.13403274,208.73,208.71,0.67]
[1756953887421,4.13403274,208.72,208.69,0.03]
[1756953887830,4.13403274,208.73,208.69,0.03]
[1756953888032,4.13403274,208.73,208.7,0.67]
[1756953888819,42.41403274,208.74,208.7,0.67]
[1756953889038,42.41403274,208.74,208.7,5.46147674]
[1756953889335,4.13403274,208.74,208.71,0.67]
[1756953889513,10.07551926,208.8,208.71,0.67]
[1756953889514,4.22403274,208.8,208.73,4.13403274]
[1756953889818,42.41403274,208.79,208.74,0.67]
[1756953890022,4.13403274,208.77,208.74,0.67]
[1756953890216,4.13403274,208.78,208.74,0.67]
[1756953890539,42.41403274,208.79,208.74,0.67]
[1756953891234,42.41403274,208.79,208.74,5.46046999]
[1756953891444,40.9264397,208.79,208.74,4.79046999]
[1756953891738,40.9264397,208.79,208.75,0.67]
[1756953892123,38.28,208.79,208.75,0.67]
[1756953892431,2.6464397,208.78,208.76,0.67]
[1756953892613,2.6464397,208.78,208.77,0.67]
[1756953893425,0.06,208.78,208.77,0.67]
[1756953893628,2.7064397,208.78,208.77,0.67]
[1756953893832,0.06,208.78,208.77,0.67]
[1756953894141,2.7064397,208.78,208.77,0.67]
[1756953894528,0.06,208.78,208.77,0.67]
[1756953895336,0.06,208.78,208.77,8.10639994]
[1756953895740,0.06,208.78,208.77,8.39072308]
[1756953895949,0.06,208.78,208.77,0.67]
[1756953896728,0.06,208.78,208.74,4.79063785]
[1756953896922,2.7064397,208.78,208.75,0.67]
[1756953897224,2.6464397,208.77,208.75,0.67]
[1756953897829,2.6464397,208.77,208.72,4.79090824]
[1756953898142,2.6464397,208.77,208.73,0.67]
[1756953898449,2.6464397,208.77,208.74,0.67]
[1756953898638,2.6464397,208.77,208.75,0.67]
[1756953899023,2.6464397,208.77,208.73,0.67]
[1756953899226,0.06,208.78,208.73,0.67]
[1756953899441,2.7064397,208.78,208.73,0.67]
[1756953899749,0.06,208.78,208.73,0.67]
[1756953899951,0.06,208.78,208.73,3.3164397]
[1756953900244,0.06,208.78,208.74,3.3164397]
[1756953900433,0.06,208.78,208.76,2.6464397]
[1756953900633,0.06,208.78,208.75,0.67]
[1756953901037,0.06,208.78,208.76,4.79018969]
[1756953901238,0.06,208.78,208.77,0.67]
[1756953901626,0.06,208.78,208.75,2.6464397]
[1756953901827,2.6464397,208.76,208.72,0.67]
[1756953902028,2.6464397,208.76,208.73,0.67]
[1756953902953,2.6464397,208.77,208.73,0.67]
[1756953903649,0.06,208.78,208.73,0.67]
[1756953903846,2.6464397,208.77,208.73,0.67]
[1756953904241,2.6464397,208.77,208.74,0.67]
[1756953904437,2.7064397,208.78,208.74,0.67]
[1756953905046,2.6464397,208.77,208.72,0.67]
[1756953905248,2.6464397,208.77,208.73,0.67]
[1756953905555,3.3564397,208.78,208.74,0.67]
[1756953907671,0.71,208.78,208.74,0.67]
[1756953907839,3.3564397,208.78,208.74,0.67]
[1756953908472,3.3564397,208.78,208.72,8.10753375]
[1756953909040,3.3564397,208.78,208.72,3.3164397]
[1756953909567,3.3564397,208.78,208.72,5.46103429]
[1756953909868,2.6464397,208.77,208.72,0.67]
[1756953910174,3.2964397,208.77,208.72,0.67]
[1756953910340,0.65,208.76,208.72,0.67]
[1756953911637,2.6464397,208.77,208.71,0.03]
[1756953911638,3.2964397,208.75,208.71,0.03]
[1756953911841,2.6464397,208.72,208.71,0.03]
[1756953912573,2.6464397,208.73,208.71,0.03]
[1756953912863,3.3064397,208.73,208.71,0.03]
[1756953915344,4.79057542,208.75,208.71,0.03]
[1756953915541,4.79000092,208.77,208.72,0.66]
[1756953915845,2.6464397,208.77,208.73,0.66]
[1756953916266,0.06,208.78,208.73,0.66]
[1756953916475,0.06,208.78,208.74,3.3064397]
[1756953916657,0.06,208.78,208.75,2.6464397]
[1756953916853,0.06,208.78,208.75,3.3064397]
[1756953917078,0.06,208.78,208.76,0.66]
[1756953917588,0.06,208.78,208.76,5.45015777]
[1756953917754,0.06,208.78,208.77,0.66]
[1756953918075,0.06,208.8,208.78,13.87991715]
[1756953918270,0.06,208.8,208.79,3.3064397]
[1756953918476,0.06,208.8,208.78,3.3064397]
[1756953918858,0.06,208.8,208.79,3.3064397]
[1756953919749,0.06,208.8,208.79,8.09594111]
[1756953920781,0.06,208.8,208.79,3.3064397]
[1756953920975,0.06,208.8,208.76,33.43651682]
[1756953921471,0.06,208.8,208.76,34.09651682]
[1756953921661,0.06,208.8,208.77,0.66]
[1756953922481,0.06,208.8,208.77,3.3064397]
[1756953923380,0.06,208.8,208.77,8.09639177]
[1756953924358,0.06,208.8,208.78,3.3064397]
[1756953924560,0.06,208.8,208.78,0.66]
[1756953924757,0.06,208.8,208.78,2.6464397]
[1756953925872,0.06,208.8,208.77,8.09639177]
[1756953926072,0.06,208.8,208.76,33.43658745]
[1756953926275,0.66,208.79,208.73,13.59559401]
[1756953926477,3.3064397,208.79,208.73,3.59076284]
[1756953926660,3.3064397,208.79,208.73,8.38161484]
[1756953927057,0.66,208.79,208.73,8.38161484]
[1756953927287,0.66,208.79,208.73,5.73517514]
[1756953927475,0.66,208.79,208.74,0.03]
[1756953927670,0.66,208.79,208.74,8.12702222]
[1756953927876,0.06,208.8,208.75,3.3064397]
[1756953928070,0.06,208.8,208.77,2.6464397]
[1756953928482,0.06,208.8,208.77,0.66]
[1756953928788,0.06,208.8,208.76,2.6464397]
[1756953928962,0.06,208.8,208.76,3.3064397]
[1756953929975,0.06,208.8,208.76,2.6464397]
[1756953930180,0.06,208.8,208.77,0.66]
[1756953930382,0.06,208.8,208.77,3.3064397]
[1756953930687,0.06,208.8,208.78,0.66]
[1756953930897,0.06,208.8,208.78,3.3064397]
[1756953931070,0.06,208.8,208.79,0.66]
[1756953931790,0.06,208.8,208.77,0.94432314]
[1756953932001,0.06,208.8,208.79,5.44950141]
[1756953932706,0.06,208.8,208.79,8.09594111]
[1756953932876,0.06,208.8,208.79,8.38026425]
[1756953933188,0.06,208.8,208.79,21.97585826]
[1756953933392,0.06,208.8,208.79,4.78950141]
[1756953934499,0.06,208.8,208.78,7.43617051]
[1756953934702,0.06,208.8,208.78,8.09617051]
[1756953935297,0.06,208.8,208.79,0.66]
[1756953935607,0.06,208.8,208.79,3.3064397]
[1756953935890,0.06,208.8,208.79,17.18635685]
[1756953936311,0.06,208.8,208.79,21.97585826]
[1756953936990,0.06,208.8,208.79,23.89455355]
[1756953937782,1e-08,208.8,208.79,23.89455355]
[1756953938195,1e-08,208.81,208.8,42.52635685]